[Event "Early-Titled-Tuesday-Blitz-October-10-2023"]
[Site "Chess.com"]
[Date "2023.10.10"]
[Round "5"]
[White "jcibarra"]
[Black "ferrufino64"]
[Result "1-0"]
[WhiteElo "2906"]
[BlackElo "2196"]
[TimeControl "180+1"]
[EndTime "8:52:05 PDT"]
[Termination "jcibarra won by resignation"]

1. e4 {[%clk 0:03:00.9]} 1... c5 {[%clk 0:02:50.3]} 2. Nf3 {[%clk 0:03:00.8]}
2... d6 {[%clk 0:02:50.4]} 3. c3 {[%clk 0:03:00.8]} 3... Nf6 {[%clk 0:02:50]} 4.
h3 {[%clk 0:03:00.8]} 4... Nc6 {[%clk 0:02:41.6]} 5. Bd3 {[%clk 0:03:00.2]} 5...
e5 {[%clk 0:02:40.2]} 6. Bc2 {[%clk 0:03:00]} 6... d5 {[%clk 0:02:34.9]} 7. exd5
{[%clk 0:02:58.2]} 7... Nxd5 {[%clk 0:02:35.3]} 8. O-O {[%clk 0:02:53.1]} 8...
Be7 {[%clk 0:02:35.3]} 9. Re1 {[%clk 0:02:52.5]} 9... O-O {[%clk 0:02:23.5]} 10.
Nxe5 {[%clk 0:02:32.1]} 10... Nxe5 {[%clk 0:02:17.5]} 11. Rxe5 {[%clk
0:02:32.7]} 11... Be6 {[%clk 0:02:10.3]} 12. Re1 {[%clk 0:02:11.3]} 12... Qc7
{[%clk 0:01:57.5]} 13. Na3 {[%clk 0:02:01]} 13... Rad8 {[%clk 0:01:48.9]} 14.
Qf3 {[%clk 0:01:56.8]} 14... g6 {[%clk 0:01:41.4]} 15. d3 {[%clk 0:01:48.6]}
15... Rfe8 {[%clk 0:01:39.8]} 16. Bh6 {[%clk 0:01:42.7]} 16... a6 {[%clk
0:01:35.9]} 17. Nc4 {[%clk 0:01:41.3]} 17... b5 {[%clk 0:01:22.9]} 18. Ne5
{[%clk 0:01:40.2]} 18... f6 {[%clk 0:01:15.6]} 19. Nxg6 {[%clk 0:01:33.3]} 19...
hxg6 {[%clk 0:01:15.4]} 20. Rxe6 {[%clk 0:01:32.4]} 20... Kf7 {[%clk 0:01:08.9]}
21. Rae1 {[%clk 0:01:30.5]} 21... Rd6 {[%clk 0:00:56.7]} 22. Bb3 {[%clk
0:01:18.5]} 22... c4 {[%clk 0:00:53.5]} 23. Rxd6 {[%clk 0:01:16.7]} 1-0

[Event "Early-Titled-Tuesday-Blitz-October-10-2023"]
[Site "Chess.com"]
[Date "2023.10.10"]
[Round "5"]
[White "ChessQueen"]
[Black "CraiggoryC"]
[Result "1-0"]
[WhiteElo "2707"]
[BlackElo "2258"]
[TimeControl "180+1"]
[EndTime "8:52:05 PDT"]
[Termination "ChessQueen won by resignation"]

1. Nf3 {[%clk 0:03:00.9]} 1... Nf6 {[%clk 0:02:59.8]} 2. g3 {[%clk 0:03:01.3]}
2... d5 {[%clk 0:02:59.8]} 3. Bg2 {[%clk 0:03:01.7]} 3... e6 {[%clk 0:03:00.5]}
4. O-O {[%clk 0:03:02]} 4... Be7 {[%clk 0:03:01.2]} 5. c4 {[%clk 0:03:02]} 5...
O-O {[%clk 0:03:00.8]} 6. b3 {[%clk 0:03:01.8]} 6... d4 {[%clk 0:03:00]} 7. e3
{[%clk 0:02:58.1]} 7... c5 {[%clk 0:02:59.4]} 8. b4 {[%clk 0:02:54.5]} 8... Nc6
{[%clk 0:02:05.5]} 9. b5 {[%clk 0:02:53]} 9... Na5 {[%clk 0:02:06]} 10. d3
{[%clk 0:02:45.1]} 10... Re8 {[%clk 0:01:47.3]} 11. exd4 {[%clk 0:02:41.8]}
11... cxd4 {[%clk 0:01:48.2]} 12. Nbd2 {[%clk 0:02:39.4]} 12... b6 {[%clk
0:01:30]} 13. Ne5 {[%clk 0:02:24.5]} 13... Bb7 {[%clk 0:01:20.5]} 14. Bxb7
{[%clk 0:02:24.1]} 14... Nxb7 {[%clk 0:01:20.5]} 15. Nc6 {[%clk 0:02:24.7]}
15... Qc7 {[%clk 0:01:10.5]} 16. Nxd4 {[%clk 0:02:15.5]} 16... Rad8 {[%clk
0:00:47]} 17. Bb2 {[%clk 0:02:13.7]} 17... Nc5 {[%clk 0:00:36.8]} 18. N2b3
{[%clk 0:02:06.7]} 18... e5 {[%clk 0:00:36.4]} 19. Nc6 {[%clk 0:01:52.7]} 19...
Rxd3 {[%clk 0:00:35.4]} 20. Qe2 {[%clk 0:01:52.7]} 20... Nxb3 {[%clk 0:00:24.3]}
21. axb3 {[%clk 0:01:48.6]} 21... Rxb3 {[%clk 0:00:23.7]} 22. Rxa7 {[%clk
0:01:46.9]} 22... Qd6 {[%clk 0:00:15.6]} 23. Bxe5 {[%clk 0:01:46.4]} 23... Qc5
{[%clk 0:00:11]} 24. Bxf6 {[%clk 0:01:45.4]} 24... Bxf6 {[%clk 0:00:07.2]} 25.
Qxe8+ {[%clk 0:01:43]} 1-0

[Event "Early-Titled-Tuesday-Blitz-October-10-2023"]
[Site "Chess.com"]
[Date "2023.10.10"]
[Round "5"]
[White "carloseduar100"]
[Black "sokidze"]
[Result "0-1"]
[WhiteElo "2329"]
[BlackElo "2785"]
[TimeControl "180+1"]
[EndTime "8:52:14 PDT"]
[Termination "sokidze won by resignation"]

1. g3 {[%clk 0:02:56.4]} 1... d5 {[%clk 0:02:56.9]} 2. Bg2 {[%clk 0:02:57.3]}
2... e5 {[%clk 0:02:56.9]} 3. d4 {[%clk 0:02:57.6]} 3... exd4 {[%clk 0:02:39.8]}
4. Qxd4 {[%clk 0:02:57.2]} 4... Nf6 {[%clk 0:02:39.2]} 5. Bg5 {[%clk 0:02:52.8]}
5... Be7 {[%clk 0:02:36]} 6. Nf3 {[%clk 0:02:51.1]} 6... Nc6 {[%clk 0:02:31.9]}
7. Qa4 {[%clk 0:02:49.8]} 7... O-O {[%clk 0:02:31.2]} 8. O-O {[%clk 0:02:49.8]}
8... h6 {[%clk 0:02:24.6]} 9. Bf4 {[%clk 0:02:46.1]} 9... Ne4 {[%clk 0:02:23]}
10. Nbd2 {[%clk 0:02:44.8]} 10... Nc5 {[%clk 0:02:22.3]} 11. Qa3 {[%clk
0:02:36.6]} 11... a5 {[%clk 0:01:58.9]} 12. c3 {[%clk 0:02:06.3]} 12... a4
{[%clk 0:01:43.3]} 13. Rfe1 {[%clk 0:01:55.1]} 13... Nd3 {[%clk 0:01:38.3]} 14.
Qxe7 {[%clk 0:01:55]} 14... Nxe7 {[%clk 0:01:36.3]} 15. exd3 {[%clk 0:01:55.9]}
15... Ng6 {[%clk 0:01:35.6]} 16. Be3 {[%clk 0:01:53.1]} 16... Re8 {[%clk
0:01:35.8]} 17. d4 {[%clk 0:01:51.7]} 17... a3 {[%clk 0:01:34.6]} 18. b3 {[%clk
0:01:52]} 18... Bf5 {[%clk 0:01:34.1]} 19. Rac1 {[%clk 0:01:51.1]} 19... c6
{[%clk 0:01:34]} 20. c4 {[%clk 0:01:51.3]} 20... Qd7 {[%clk 0:01:32.2]} 21. cxd5
{[%clk 0:01:50.7]} 21... cxd5 {[%clk 0:01:32.7]} 22. Rc5 {[%clk 0:01:47.9]}
22... b6 {[%clk 0:01:32]} 23. Rc3 {[%clk 0:01:46.3]} 23... Rac8 {[%clk
0:01:31.8]} 24. Rec1 {[%clk 0:01:40.2]} 24... Rxc3 {[%clk 0:01:31.6]} 25. Rxc3
{[%clk 0:01:41.1]} 25... Rc8 {[%clk 0:01:32.3]} 26. Rxc8+ {[%clk 0:01:40]} 26...
Qxc8 {[%clk 0:01:32.8]} 27. Ne5 {[%clk 0:01:19]} 27... Nxe5 {[%clk 0:01:29.9]}
28. dxe5 {[%clk 0:01:19.5]} 28... Qc1+ {[%clk 0:01:27.6]} 29. Nf1 {[%clk
0:01:19.8]} 29... Qc2 {[%clk 0:01:26.9]} 30. Bxd5 {[%clk 0:01:13.6]} 30... Qxa2
{[%clk 0:01:26.2]} 31. Bxb6 {[%clk 0:01:09.6]} 31... Qb1 {[%clk 0:01:23.8]} 32.
Bd4 {[%clk 0:01:01.9]} 32... a2 {[%clk 0:01:22.6]} 33. Kg2 {[%clk 0:01:01.8]}
33... Be4+ {[%clk 0:01:23]} 34. Bxe4 {[%clk 0:01:01.8]} 34... Qxe4+ {[%clk
0:01:23.1]} 0-1

[Event "Early-Titled-Tuesday-Blitz-October-10-2023"]
[Site "Chess.com"]
[Date "2023.10.10"]
[Round "5"]
[White "vishwa_vijeta"]
[Black "CSB7"]
[Result "0-1"]
[WhiteElo "2551"]
[BlackElo "2754"]
[TimeControl "180+1"]
[EndTime "8:52:19 PDT"]
[Termination "CSB7 won by checkmate"]

1. e4 {[%clk 0:02:56.7]} 1... c6 {[%clk 0:02:57.5]} 2. d4 {[%clk 0:02:55.3]}
2... d5 {[%clk 0:02:57.6]} 3. Nd2 {[%clk 0:02:55.1]} 3... dxe4 {[%clk
0:02:57.2]} 4. Nxe4 {[%clk 0:02:56]} 4... Nf6 {[%clk 0:02:56.9]} 5. Nxf6+ {[%clk
0:02:55]} 5... exf6 {[%clk 0:02:57.8]} 6. c3 {[%clk 0:02:50.9]} 6... Bd6 {[%clk
0:02:57.3]} 7. Bd3 {[%clk 0:02:49.1]} 7... O-O {[%clk 0:02:57.1]} 8. Qc2 {[%clk
0:02:47.6]} 8... Re8+ {[%clk 0:02:55.9]} 9. Ne2 {[%clk 0:02:44]} 9... h5 {[%clk
0:02:55.8]} 10. Be3 {[%clk 0:02:40.3]} 10... h4 {[%clk 0:02:42.9]} 11. h3 {[%clk
0:02:37.2]} 11... Be6 {[%clk 0:02:38.7]} 12. c4 {[%clk 0:02:34.3]} 12... Nd7
{[%clk 0:02:22.4]} 13. O-O-O {[%clk 0:02:30.7]} 13... Nf8 {[%clk 0:02:01.9]} 14.
Kb1 {[%clk 0:02:26.6]} 14... a6 {[%clk 0:01:53.1]} 15. Nc3 {[%clk 0:02:21.8]}
15... b5 {[%clk 0:01:49.6]} 16. d5 {[%clk 0:02:13]} 16... cxd5 {[%clk
0:01:50.4]} 17. cxb5 {[%clk 0:02:13.1]} 17... Qa5 {[%clk 0:01:22.8]} 18. bxa6
{[%clk 0:01:59.6]} 18... Rec8 {[%clk 0:01:00.7]} 19. Bd4 {[%clk 0:01:48.1]}
19... Be5 {[%clk 0:00:57.1]} 20. Be2 {[%clk 0:01:39]} 20... g6 {[%clk
0:00:51.9]} 21. Qd2 {[%clk 0:01:36.8]} 21... Bf5+ {[%clk 0:00:39.4]} 22. Ka1
{[%clk 0:01:35.9]} 22... Ne6 {[%clk 0:00:31]} 23. Bxe5 {[%clk 0:01:33.9]} 23...
fxe5 {[%clk 0:00:31]} 24. Nxd5 {[%clk 0:01:34.2]} 24... Nd4 {[%clk 0:00:20.8]}
25. Ne3 {[%clk 0:01:20.3]} 25... Nb3# {[%clk 0:00:19.3]} 0-1

[Event "Early-Titled-Tuesday-Blitz-October-10-2023"]
[Site "Chess.com"]
[Date "2023.10.10"]
[Round "5"]
[White "KamlaPasand"]
[Black "Sadykov_Ramil"]
[Result "0-1"]
[WhiteElo "2468"]
[BlackElo "2617"]
[TimeControl "180+1"]
[EndTime "8:52:24 PDT"]
[Termination "Sadykov_Ramil won by checkmate"]

1. e4 {[%clk 0:02:02.3]} 1... c5 {[%clk 0:02:58.8]} 2. Nf3 {[%clk 0:02:02.2]}
2... e6 {[%clk 0:02:59.4]} 3. d4 {[%clk 0:02:02.4]} 3... cxd4 {[%clk 0:03:00.3]}
4. Nxd4 {[%clk 0:02:02.8]} 4... Nf6 {[%clk 0:03:01]} 5. Nc3 {[%clk 0:02:02.9]}
5... Bb4 {[%clk 0:03:01.7]} 6. Bd3 {[%clk 0:02:01.4]} 6... Nc6 {[%clk
0:02:59.7]} 7. Nxc6 {[%clk 0:02:01]} 7... bxc6 {[%clk 0:02:56.7]} 8. O-O {[%clk
0:02:01.5]} 8... O-O {[%clk 0:02:54.8]} 9. e5 {[%clk 0:02:00.9]} 9... Nd5 {[%clk
0:02:53.9]} 10. Nxd5 {[%clk 0:01:59.4]} 10... cxd5 {[%clk 0:02:52]} 11. Qg4
{[%clk 0:01:59]} 11... Qe7 {[%clk 0:02:10.1]} 12. Bg5 {[%clk 0:01:53.3]} 12...
Qc5 {[%clk 0:01:52.8]} 13. a3 {[%clk 0:01:52.5]} 13... Rb8 {[%clk 0:01:33.6]}
14. Bf6 {[%clk 0:01:46.5]} 14... g6 {[%clk 0:01:30]} 15. Qh4 {[%clk 0:01:39]}
15... Bd2 {[%clk 0:01:15.5]} 16. Be7 {[%clk 0:01:36.4]} 16... Qc7 {[%clk
0:01:03.1]} 17. Bxf8 {[%clk 0:01:33.6]} 17... Kxf8 {[%clk 0:01:00.4]} 18. Qxh7
{[%clk 0:01:33.6]} 18... Qxe5 {[%clk 0:01:00.2]} 19. Kh1 {[%clk 0:01:31.4]}
19... Rxb2 {[%clk 0:00:58.3]} 20. Rab1 {[%clk 0:01:28.8]} 20... Bc3 {[%clk
0:00:49.2]} 21. f4 {[%clk 0:01:25.5]} 21... Qf6 {[%clk 0:00:46.8]} 22. Rxb2
{[%clk 0:01:19.3]} 22... Bxb2 {[%clk 0:00:47.7]} 23. g4 {[%clk 0:01:18.2]} 23...
Bxa3 {[%clk 0:00:41.3]} 24. f5 {[%clk 0:01:18.4]} 24... gxf5 {[%clk 0:00:37.5]}
25. gxf5 {[%clk 0:01:16.5]} 25... Bb7 {[%clk 0:00:30.3]} 26. fxe6 {[%clk
0:01:11.5]} 26... d4+ {[%clk 0:00:30.4]} 27. Kg1 {[%clk 0:01:11.7]} 27... Qg5+
{[%clk 0:00:29.6]} 28. Kf2 {[%clk 0:01:11.8]} 28... Qe3# {[%clk 0:00:29.3]} 0-1

[Event "Early-Titled-Tuesday-Blitz-October-10-2023"]
[Site "Chess.com"]
[Date "2023.10.10"]
[Round "5"]
[White "noblerone"]
[Black "Mikhail_Golubev"]
[Result "0-1"]
[WhiteElo "2473"]
[BlackElo "2617"]
[TimeControl "180+1"]
[EndTime "8:52:25 PDT"]
[Termination "Mikhail_Golubev won by resignation"]

1. d4 {[%clk 0:03:00.9]} 1... Nf6 {[%clk 0:02:57.8]} 2. c4 {[%clk 0:03:00.9]}
2... g6 {[%clk 0:02:56.3]} 3. Nc3 {[%clk 0:03:00.7]} 3... Bg7 {[%clk 0:02:56.4]}
4. Nf3 {[%clk 0:03:01.3]} 4... d6 {[%clk 0:02:56.2]} 5. Bg5 {[%clk 0:03:01.8]}
5... O-O {[%clk 0:02:50.3]} 6. e3 {[%clk 0:03:01.5]} 6... c5 {[%clk 0:02:46]} 7.
Be2 {[%clk 0:02:54.8]} 7... cxd4 {[%clk 0:02:44]} 8. exd4 {[%clk 0:02:55.7]}
8... h6 {[%clk 0:02:41.1]} 9. Bxf6 {[%clk 0:02:34.3]} 9... Bxf6 {[%clk 0:02:40]}
10. O-O {[%clk 0:02:35.2]} 10... Nc6 {[%clk 0:02:36.4]} 11. Qd2 {[%clk
0:02:23.4]} 11... Bg4 {[%clk 0:02:33.1]} 12. Qxh6 {[%clk 0:02:03.9]} 12... Bxf3
{[%clk 0:02:26.2]} 13. Bxf3 {[%clk 0:02:02.8]} 13... Nxd4 {[%clk 0:02:26.3]} 14.
Be4 {[%clk 0:01:56.2]} 14... Rc8 {[%clk 0:02:12.2]} 15. Bd3 {[%clk 0:01:42]}
15... Bg7 {[%clk 0:02:02]} 16. Qe3 {[%clk 0:01:31]} 16... e6 {[%clk 0:01:55.1]}
17. Rac1 {[%clk 0:01:28.5]} 17... a6 {[%clk 0:01:53.2]} 18. b3 {[%clk
0:01:26.8]} 18... Qa5 {[%clk 0:01:48.9]} 19. Bb1 {[%clk 0:01:02.7]} 19... b5
{[%clk 0:01:47.8]} 20. cxb5 {[%clk 0:00:55.3]} 20... Rxc3 {[%clk 0:01:42.9]} 21.
Rxc3 {[%clk 0:00:30.9]} 21... Qxc3 {[%clk 0:01:41.9]} 22. bxa6 {[%clk
0:00:27.9]} 22... Qa5 {[%clk 0:01:40.2]} 23. Rd1 {[%clk 0:00:22.7]} 23... Qxa6
{[%clk 0:01:35.1]} 24. Rxd4 {[%clk 0:00:15.5]} 24... Bxd4 {[%clk 0:01:33.8]} 25.
Qxd4 {[%clk 0:00:15.8]} 25... Rc8 {[%clk 0:01:32.5]} 26. Qd1 {[%clk 0:00:14.4]}
26... Qa3 {[%clk 0:01:29.1]} 27. Bc2 {[%clk 0:00:09.4]} 27... Qb2 {[%clk
0:01:26.4]} 0-1

[Event "Early-Titled-Tuesday-Blitz-October-10-2023"]
[Site "Chess.com"]
[Date "2023.10.10"]
[Round "5"]
[White "DopplerCharlotteDeWitte"]
[Black "MITerryble"]
[Result "0-1"]
[WhiteElo "2752"]
[BlackElo "3021"]
[TimeControl "180+1"]
[EndTime "8:52:27 PDT"]
[Termination "MITerryble won by resignation"]

1. e4 {[%clk 0:02:51.7]} 1... e6 {[%clk 0:02:56.6]} 2. d4 {[%clk 0:02:51.3]}
2... d5 {[%clk 0:02:57.1]} 3. exd5 {[%clk 0:02:52.2]} 3... exd5 {[%clk
0:02:57.1]} 4. Nf3 {[%clk 0:02:51.7]} 4... Nc6 {[%clk 0:02:57.6]} 5. c3 {[%clk
0:02:46.8]} 5... Bd6 {[%clk 0:02:57.8]} 6. Bg5 {[%clk 0:02:45.6]} 6... Nge7
{[%clk 0:02:57.2]} 7. Bh4 {[%clk 0:02:44.8]} 7... Bg4 {[%clk 0:02:57.1]} 8. Nbd2
{[%clk 0:02:41.4]} 8... O-O {[%clk 0:02:56.8]} 9. Be2 {[%clk 0:02:40.9]} 9...
Qd7 {[%clk 0:02:56.4]} 10. Bg3 {[%clk 0:02:39.2]} 10... Ng6 {[%clk 0:02:55.9]}
11. Bxd6 {[%clk 0:02:36.2]} 11... Qxd6 {[%clk 0:02:55.6]} 12. h3 {[%clk
0:02:28.3]} 12... Bf5 {[%clk 0:02:55.3]} 13. Nf1 {[%clk 0:02:25]} 13... Nf4
{[%clk 0:02:53.2]} 14. Ne3 {[%clk 0:02:25.1]} 14... Be4 {[%clk 0:02:53.6]} 15.
Qd2 {[%clk 0:02:04.5]} 15... Rae8 {[%clk 0:02:49.7]} 16. O-O-O {[%clk
0:02:02.3]} 16... Re7 {[%clk 0:02:34.7]} 17. Rhe1 {[%clk 0:01:56.8]} 17... Rfe8
{[%clk 0:02:18.2]} 18. Bb5 {[%clk 0:01:54.3]} 18... Nxg2 {[%clk 0:01:55.9]} 19.
Bxc6 {[%clk 0:01:09.4]} 19... Nxe1 {[%clk 0:01:44.5]} 20. Nxe1 {[%clk
0:00:58.4]} 20... Qxc6 {[%clk 0:01:43.9]} 21. Nd3 {[%clk 0:00:56.2]} 21... Qa6
{[%clk 0:01:41.1]} 22. Nb4 {[%clk 0:00:54]} 22... Qb5 {[%clk 0:01:39.2]} 23. Rg1
{[%clk 0:00:51.7]} 23... a5 {[%clk 0:01:21.8]} 24. Nexd5 {[%clk 0:00:47.9]}
24... Bxd5 {[%clk 0:01:03.1]} 25. Rxg7+ {[%clk 0:00:45.9]} 25... Kh8 {[%clk
0:01:03.5]} 26. Nc2 {[%clk 0:00:32.2]} 26... Qf1+ {[%clk 0:00:59.1]} 0-1

[Event "Early-Titled-Tuesday-Blitz-October-10-2023"]
[Site "Chess.com"]
[Date "2023.10.10"]
[Round "5"]
[White "chessculator16"]
[Black "bennyficial"]
[Result "1-0"]
[WhiteElo "2297"]
[BlackElo "2131"]
[TimeControl "180+1"]
[EndTime "8:52:29 PDT"]
[Termination "chessculator16 won on time"]

1. d4 {[%clk 0:03:00.9]} 1... Nf6 {[%clk 0:02:59.9]} 2. c4 {[%clk 0:03:01.4]}
2... e6 {[%clk 0:03:00.4]} 3. Nc3 {[%clk 0:03:02.1]} 3... Bb4 {[%clk 0:03:00.5]}
4. Qc2 {[%clk 0:03:02.5]} 4... O-O {[%clk 0:02:59.5]} 5. e4 {[%clk 0:03:02.2]}
5... d5 {[%clk 0:02:59]} 6. e5 {[%clk 0:03:02.6]} 6... Ne4 {[%clk 0:02:59.6]} 7.
Bd3 {[%clk 0:03:02.9]} 7... c5 {[%clk 0:02:59.2]} 8. Nf3 {[%clk 0:03:03.6]} 8...
cxd4 {[%clk 0:02:55.5]} 9. Nxd4 {[%clk 0:03:04.2]} 9... Nc6 {[%clk 0:02:45.6]}
10. Nxc6 {[%clk 0:02:59.4]} 10... bxc6 {[%clk 0:02:44.7]} 11. Bxe4 {[%clk
0:02:59.7]} 11... dxe4 {[%clk 0:02:43.8]} 12. Qxe4 {[%clk 0:03:00]} 12... Bxc3+
{[%clk 0:02:15.5]} 13. bxc3 {[%clk 0:03:00.9]} 13... Qa5 {[%clk 0:02:15.8]} 14.
O-O {[%clk 0:02:57.8]} 14... Ba6 {[%clk 0:02:08.8]} 15. Be3 {[%clk 0:02:50.6]}
15... Qxc3 {[%clk 0:01:49.4]} 16. Rfc1 {[%clk 0:02:47.7]} 16... Qa5 {[%clk
0:01:45.5]} 17. Qxc6 {[%clk 0:02:46.5]} 17... Rac8 {[%clk 0:01:30.6]} 18. Qe4
{[%clk 0:02:46]} 18... Rc7 {[%clk 0:01:22.2]} 19. c5 {[%clk 0:02:43.6]} 19...
Rd8 {[%clk 0:01:16]} 20. Rd1 {[%clk 0:02:40.2]} 20... Rxd1+ {[%clk 0:00:32]} 21.
Rxd1 {[%clk 0:02:41.1]} 21... Rc8 {[%clk 0:00:32.6]} 22. Qc2 {[%clk 0:02:32.2]}
22... Bb5 {[%clk 0:00:26.7]} 23. h3 {[%clk 0:02:29.4]} 23... Ba4 {[%clk
0:00:17.4]} 24. Qd2 {[%clk 0:02:29.6]} 24... Qxd2 {[%clk 0:00:16]} 25. Rxd2
{[%clk 0:02:29.8]} 25... Bc6 {[%clk 0:00:13.4]} 26. g3 {[%clk 0:02:27.8]} 26...
Bd5 {[%clk 0:00:13.1]} 27. f4 {[%clk 0:02:27.7]} 27... Rc6 {[%clk 0:00:08.2]}
28. Rb2 {[%clk 0:02:27]} 28... g6 {[%clk 0:00:04.6]} 29. a4 {[%clk 0:02:22.5]}
29... Kg7 {[%clk 0:00:04.4]} 30. Kf2 {[%clk 0:02:22.1]} 30... h5 {[%clk
0:00:04.6]} 31. h4 {[%clk 0:02:20.9]} 31... Ra6 {[%clk 0:00:05]} 32. Rb4 {[%clk
0:02:19.9]} 32... Bc6 {[%clk 0:00:05.4]} 33. Bd2 {[%clk 0:02:18.2]} 33... Rxa4
{[%clk 0:00:05.5]} 34. Rxa4 {[%clk 0:02:18]} 34... Bxa4 {[%clk 0:00:06.4]} 35.
Ke3 {[%clk 0:02:18.7]} 35... Bc6 {[%clk 0:00:06.8]} 36. Kd4 {[%clk 0:02:18.9]}
36... a6 {[%clk 0:00:07.3]} 37. Kc3 {[%clk 0:02:19.1]} 37... Kf8 {[%clk
0:00:07.6]} 38. Kb4 {[%clk 0:02:19.6]} 38... Ke7 {[%clk 0:00:07.3]} 39. Ka5
{[%clk 0:02:20.1]} 39... Bb5 {[%clk 0:00:07.6]} 40. Kb6 {[%clk 0:02:14.8]} 40...
Kd7 {[%clk 0:00:07.7]} 41. Ba5 {[%clk 0:02:15]} 41... Kc8 {[%clk 0:00:03.5]} 42.
c6 {[%clk 0:02:14.9]} 42... Kb8 {[%clk 0:00:04.1]} 43. Kc5 {[%clk 0:02:14.1]}
43... Kc8 {[%clk 0:00:04.4]} 44. Kd6 {[%clk 0:02:14.3]} 44... Kb8 {[%clk
0:00:03.3]} 45. Kd7 {[%clk 0:02:14.1]} 1-0

[Event "Early-Titled-Tuesday-Blitz-October-10-2023"]
[Site "Chess.com"]
[Date "2023.10.10"]
[Round "5"]
[White "Jmf24"]
[Black "Henryk_S"]
[Result "0-1"]
[WhiteElo "2477"]
[BlackElo "2156"]
[TimeControl "180+1"]
[EndTime "8:52:29 PDT"]
[Termination "Henryk_S won by resignation"]

1. e4 {[%clk 0:03:00.9]} 1... e6 {[%clk 0:02:59.5]} 2. d4 {[%clk 0:02:57.5]}
2... d5 {[%clk 0:02:59.5]} 3. e5 {[%clk 0:02:57.7]} 3... c5 {[%clk 0:02:59.5]}
4. c3 {[%clk 0:02:58.3]} 4... Nc6 {[%clk 0:02:59.8]} 5. Nf3 {[%clk 0:02:54.5]}
5... Qb6 {[%clk 0:02:59.5]} 6. Bd3 {[%clk 0:02:50.7]} 6... cxd4 {[%clk 0:02:57]}
7. cxd4 {[%clk 0:02:51.6]} 7... Bd7 {[%clk 0:02:57.3]} 8. O-O {[%clk 0:02:51.2]}
8... Nb4 {[%clk 0:02:57.1]} 9. Be2 {[%clk 0:02:51.2]} 9... Bb5 {[%clk
0:02:53.2]} 10. Nc3 {[%clk 0:02:48.6]} 10... Bxe2 {[%clk 0:02:51]} 11. Qxe2
{[%clk 0:02:49.5]} 11... a6 {[%clk 0:02:34.2]} 12. Bf4 {[%clk 0:02:48.7]} 12...
Ne7 {[%clk 0:02:32.6]} 13. h4 {[%clk 0:02:47.1]} 13... h5 {[%clk 0:02:24]} 14.
Rac1 {[%clk 0:02:43.8]} 14... Nbc6 {[%clk 0:02:22.6]} 15. Rfd1 {[%clk
0:02:34.8]} 15... Nf5 {[%clk 0:02:16.2]} 16. Na4 {[%clk 0:02:33.3]} 16... Qb5
{[%clk 0:02:00.7]} 17. Qc2 {[%clk 0:02:30.6]} 17... Be7 {[%clk 0:01:47]} 18. Nc5
{[%clk 0:02:27.9]} 18... Bxc5 {[%clk 0:01:06.9]} 19. Qxc5 {[%clk 0:02:22.8]}
19... Qxc5 {[%clk 0:01:02.2]} 20. dxc5 {[%clk 0:02:11.2]} 20... Rc8 {[%clk
0:00:58.3]} 21. a3 {[%clk 0:02:10.1]} 21... Ke7 {[%clk 0:00:53]} 22. b4 {[%clk
0:02:10.1]} 22... Rhd8 {[%clk 0:00:45.8]} 23. Nd2 {[%clk 0:01:46.3]} 23... Ncd4
{[%clk 0:00:38.1]} 24. f3 {[%clk 0:01:41.9]} 24... Ne2+ {[%clk 0:00:36.5]} 25.
Kf2 {[%clk 0:01:42.2]} 25... Nxf4 {[%clk 0:00:35.6]} 26. Nb3 {[%clk 0:01:41.5]}
26... Ng6 {[%clk 0:00:33.3]} 27. Na5 {[%clk 0:01:38.5]} 27... Rc7 {[%clk
0:00:32]} 28. Rd3 {[%clk 0:01:32]} 28... Nxe5 {[%clk 0:00:31.5]} 29. Rdc3 {[%clk
0:01:31.8]} 29... Nc6 {[%clk 0:00:30.4]} 30. Nb3 {[%clk 0:01:30.6]} 30... d4
{[%clk 0:00:30.4]} 31. Rc4 {[%clk 0:01:30.8]} 31... Ne5 {[%clk 0:00:27.6]} 32.
R4c2 {[%clk 0:01:25.3]} 32... Nd3+ {[%clk 0:00:26.4]} 0-1

[Event "Early-Titled-Tuesday-Blitz-October-10-2023"]
[Site "Chess.com"]
[Date "2023.10.10"]
[Round "5"]
[White "zimmm36"]
[Black "eljanov"]
[Result "0-1"]
[WhiteElo "2676"]
[BlackElo "2903"]
[TimeControl "180+1"]
[EndTime "8:52:33 PDT"]
[Termination "eljanov won by resignation"]

1. e4 {[%clk 0:03:00.9]} 1... c6 {[%clk 0:02:59.8]} 2. d4 {[%clk 0:02:59.5]}
2... d5 {[%clk 0:03:00.7]} 3. e5 {[%clk 0:02:59.7]} 3... Bf5 {[%clk 0:03:00.9]}
4. Nc3 {[%clk 0:02:59.5]} 4... e6 {[%clk 0:03:00.4]} 5. g4 {[%clk 0:03:00]} 5...
Bg6 {[%clk 0:03:00.4]} 6. Nge2 {[%clk 0:03:00.6]} 6... c5 {[%clk 0:02:56.7]} 7.
h4 {[%clk 0:03:00.5]} 7... h5 {[%clk 0:02:56.6]} 8. Nf4 {[%clk 0:03:01.1]} 8...
Bh7 {[%clk 0:02:56.8]} 9. Nxh5 {[%clk 0:03:01.7]} 9... Nc6 {[%clk 0:02:54.8]}
10. dxc5 {[%clk 0:03:00.5]} 10... a6 {[%clk 0:02:35.8]} 11. Bg5 {[%clk
0:02:43.7]} 11... f6 {[%clk 0:02:15.6]} 12. exf6 {[%clk 0:02:35.3]} 12... gxf6
{[%clk 0:02:16.5]} 13. Bd2 {[%clk 0:02:31.3]} 13... Bxc5 {[%clk 0:02:11.5]} 14.
Bg2 {[%clk 0:02:23.8]} 14... Qc7 {[%clk 0:01:52.5]} 15. Bf4 {[%clk 0:01:45.9]}
15... Bd6 {[%clk 0:01:48.9]} 16. Bxd6 {[%clk 0:01:22.5]} 16... Qxd6 {[%clk
0:01:48.9]} 17. Ng7+ {[%clk 0:01:23.4]} 17... Kd7 {[%clk 0:01:41.1]} 18. Nh5
{[%clk 0:01:23.3]} 18... Bg6 {[%clk 0:01:31.9]} 19. Ng3 {[%clk 0:01:23.1]} 19...
Nge7 {[%clk 0:01:30.2]} 20. h5 {[%clk 0:01:22.5]} 20... Bh7 {[%clk 0:01:30.5]}
21. O-O {[%clk 0:01:14.3]} 21... Rhg8 {[%clk 0:01:29.2]} 22. f4 {[%clk
0:01:02.1]} 22... Rae8 {[%clk 0:01:19.4]} 23. Qe1 {[%clk 0:00:43.8]} 23... Rxg4
{[%clk 0:01:14.5]} 24. Bh3 {[%clk 0:00:41.8]} 24... Rxg3+ {[%clk 0:01:12.7]} 25.
Qxg3 {[%clk 0:00:37.1]} 25... Rg8 {[%clk 0:01:12.9]} 26. Qxg8 {[%clk 0:00:35]}
26... Bxg8 {[%clk 0:01:11.4]} 27. Rae1 {[%clk 0:00:35.9]} 27... Nd4 {[%clk
0:01:09.7]} 28. Rf2 {[%clk 0:00:35.3]} 28... Nef5 {[%clk 0:01:08.2]} 29. Kh2
{[%clk 0:00:33.2]} 29... Bf7 {[%clk 0:01:08.1]} 30. Rg1 {[%clk 0:00:31.5]} 30...
Bxh5 {[%clk 0:01:07.1]} 31. Na4 {[%clk 0:00:27.4]} 31... Nf3+ {[%clk 0:01:05.3]}
0-1